bitfinex/quotes_BTCUSD_20250831
["timestamp","ask_amount","ask_price","bid_price","bid_amount"]
[1756604768783,0.18259837,109530.0,109520.0,0.44741]
[1756604771696,0.18259837,109530.0,109520.0,0.44937]
[1756604773221,0.18259837,109530.0,109520.0,0.74474593]
[1756604773428,0.18259837,109530.0,109520.0,0.44937]
[1756604775967,0.18259837,109530.0,109520.0,0.29481]
[1756604776198,0.18259837,109530.0,109520.0,0.44937]
[1756604776758,0.8179743,109530.0,109520.0,0.22476]
[1756604777163,0.8179743,109530.0,109520.0,0.0702]
[1756604777342,0.8179743,109530.0,109520.0,0.22476]
[1756604778020,0.52259837,109530.0,109520.0,0.22476]
[1756604778226,0.8189743,109530.0,109520.0,0.22476]
[1756604778427,0.8199743,109530.0,109520.0,0.22476]
[1756604779399,0.52459837,109530.0,109520.0,0.22476]
[1756604779577,0.8199743,109530.0,109520.0,0.22773]
[1756604781514,0.8199743,109530.0,109520.0,0.22636292]
[1756604784155,0.8199743,109530.0,109520.0,0.06883292]
[1756604784362,0.8199743,109530.0,109520.0,0.22339292]
[1756604784508,0.82283279,109530.0,109520.0,0.22339292]
[1756604785549,0.83994093,109530.0,109520.0,0.22339292]
[1756604786238,1.13531686,109530.0,109520.0,0.06883292]
[1756604786443,0.84635787,109530.0,109520.0,0.22335292]
[1756604787970,0.52261504,109520.0,109510.0,0.00297]
[1756604788270,0.8379576,109520.0,109510.0,0.15749]
[1756604788508,0.84437765,109520.0,109510.0,0.15749]
[1756604788711,0.84437765,109520.0,109510.0,0.15951]
[1756604789126,0.84438966,109520.0,109510.0,0.15959698]
[1756604790391,0.54901373,109520.0,109510.0,0.15959698]
[1756604790594,0.84438966,109520.0,109510.0,0.15959698]
[1756604792614,0.84438996,109520.0,109510.0,0.15959698]
[1756604792792,0.84438262,109520.0,109510.0,0.15959698]
[1756604793386,0.84538262,109520.0,109510.0,0.15959698]
[1756604793899,0.84438262,109520.0,109510.0,0.15959698]
[1756604794240,0.84538262,109520.0,109510.0,0.15959698]
[1756604794830,0.84638262,109520.0,109510.0,0.15959698]
[1756604795441,0.84738262,109520.0,109510.0,0.15959698]
[1756604802116,0.84738262,109520.0,109510.0,8.698e-05]
[1756604802274,1.14275855,109520.0,109510.0,0.15460698]
[1756604803309,1.12564377,109520.0,109510.0,0.15460698]
[1756604803480,1.14276261,109520.0,109510.0,0.15460698]
[1756604803687,1.14276261,109520.0,109510.0,0.15757698]
[1756604803908,1.14276268,109520.0,109510.0,0.15757698]
[1756604804227,1.14276268,109520.0,109510.0,0.15460698]
[1756604804453,0.55201082,109520.0,109510.0,0.15757698]
[1756604804662,1.14276268,109520.0,109510.0,0.15757698]
[1756604804958,0.55201082,109520.0,109510.0,0.15757698]
[1756604805198,0.84738675,109520.0,109510.0,0.15757698]
[1756604805786,0.84738675,109520.0,109510.0,0.15959698]
[1756604806894,0.83026894,109520.0,109510.0,0.15959698]
[1756604807027,0.84739378,109520.0,109510.0,0.15959698]
[1756604810340,0.84453496,109520.0,109510.0,0.15959698]
[1756604810545,0.84739381,109520.0,109510.0,0.15959698]
[1756604812586,1.14276974,109520.0,109510.0,0.15753698]
[1756604813084,0.55201788,109520.0,109510.0,0.15753698]
[1756604813241,1.14276974,109520.0,109510.0,0.15753698]
[1756604814059,1.14278113,109520.0,109510.0,0.15753698]
[1756604814530,1.14278925,109520.0,109510.0,0.15753698]
[1756604816283,0.84741332,109520.0,109510.0,0.15960698]
[1756604819187,0.55203739,109520.0,109510.0,0.15960698]
[1756604819337,0.84741332,109520.0,109510.0,0.15960698]
[1756604820905,0.55203739,109520.0,109510.0,0.15960698]
[1756604821422,0.84741332,109520.0,109510.0,0.15960698]
[1756604821821,0.84741332,109520.0,109510.0,0.15753698]
[1756604822216,0.84741332,109520.0,109510.0,0.15960698]
[1756604823396,0.84455853,109520.0,109510.0,0.15960698]
[1756604823697,0.84743127,109520.0,109510.0,0.15960698]
[1756604824035,0.55205534,109520.0,109510.0,0.15960698]
[1756604824246,0.55205538,109520.0,109510.0,0.15960698]
[1756604824452,0.84743131,109520.0,109510.0,0.15960698]
[1756604827162,0.84743175,109520.0,109510.0,0.15960698]
[1756604828689,0.55205582,109520.0,109510.0,0.15960698]
[1756604829096,0.84743175,109520.0,109510.0,0.15960698]
[1756604829709,0.55205582,109520.0,109510.0,0.15960698]
[1756604829912,0.84743175,109520.0,109510.0,0.15960698]
[1756604830313,0.55205582,109520.0,109510.0,0.45498291]
[1756604830520,0.55205505,109520.0,109510.0,0.45498291]
[1756604830895,0.55205505,109520.0,109510.0,0.63761463]
[1756604831132,0.52847381,109520.0,109510.0,0.63761463]
[1756604831336,0.52561504,109520.0,109510.0,0.63761463]
[1756604832290,0.52461504,109520.0,109510.0,0.63761463]
[1756604832490,0.52361504,109520.0,109510.0,0.63761463]
[1756604833072,0.52261504,109520.0,109510.0,0.63761463]
[1756604833578,0.52259837,109530.0,109520.0,0.18261504]
[1756604833779,0.52545687,109530.0,109520.0,0.55030097]
[1756604833981,0.52259837,109530.0,109520.0,0.55336097]
[1756604835148,0.52359837,109530.0,109520.0,0.55336097]
[1756604835960,0.52459837,109530.0,109520.0,0.41238504]
[1756604836697,0.52459837,109530.0,109520.0,0.22977]
[1756604837022,0.52459837,109530.0,109520.0,0.41238504]
[1756604837264,0.52459837,109530.0,109520.0,0.25798504]
[1756604837443,0.52459837,109530.0,109520.0,0.41238504]
[1756604837646,0.52459837,109530.0,109520.0,0.70776097]
[1756604840424,0.52459837,109530.0,109520.0,0.55336097]
[1756604840632,0.52459837,109530.0,109520.0,0.70772097]
[1756604840837,0.002,109530.0,109520.0,1.09607691]
[1756604841661,0.002,109530.0,109520.0,1.12352791]
[1756604841867,0.001,109530.0,109520.0,1.12352791]
[1756604842248,0.53169337,109550.0,109540.0,0.1825817]
[1756604842458,0.53169337,109550.0,109540.0,0.63773763]
[1756604842658,0.34,109550.0,109540.0,0.70797763]
[1756604842991,0.20629377,109560.0,109550.0,0.18256503]
[1756604843182,0.20915154,109560.0,109540.0,0.70486763]
[1756604843390,0.54629377,109560.0,109550.0,0.00111]
[1756604843532,0.54629377,109560.0,109550.0,0.00322]
[1756604843733,0.54629377,109560.0,109550.0,0.18578503]
[1756604843934,0.54629377,109560.0,109550.0,0.00322]
[1756604844131,0.54829377,109560.0,109550.0,0.00322]
[1756604844386,0.54829377,109560.0,109550.0,0.18578503]
[1756604844949,0.55029377,109560.0,109550.0,0.18578503]
[1756604845339,0.55029377,109560.0,109550.0,0.00183698]
[1756604845576,0.55227377,109560.0,109550.0,0.15635698]
[1756604845790,0.55227377,109560.0,109550.0,0.15452]
[1756604845981,0.55034144,109560.0,109550.0,0.33919503]
[1756604846961,0.36779279,109560.0,109550.0,0.48919503]
[1756604847388,0.36779279,109560.0,109550.0,0.34230503]
[1756604847592,0.36779279,109560.0,109550.0,0.49230503]
[1756604847750,0.36779279,109560.0,109550.0,0.34230503]
[1756604847951,0.36779279,109560.0,109550.0,0.88568381]
[1756604848160,0.36779279,109560.0,109550.0,0.73568381]
[1756604848804,0.36779279,109560.0,109550.0,0.34230503]
[1756604849360,0.36779279,109560.0,109550.0,0.49230503]
[1756604849562,0.36779279,109560.0,109550.0,0.34230503]
[1756604850676,0.02779279,109560.0,109550.0,0.82866382]
[1756604851012,0.02779279,109560.0,109550.0,0.85610882]
[1756604851427,0.02779279,109560.0,109550.0,0.46273004]
[1756604851662,0.02779279,109560.0,109550.0,0.85610882]
[1756604851993,0.00204767,109560.0,109550.0,0.85610882]
[1756604852203,0.00204767,109560.0,109550.0,0.85710882]
[1756604852204,4.767e-05,109560.0,109550.0,0.85710882]
[1756604852404,4.767e-05,109560.0,109550.0,0.87804764]
[1756604856651,0.19170555,109590.0,109550.0,0.87804764]
[1756604856652,0.19170555,109590.0,109570.0,0.18253171]
[1756604856885,0.53503926,109590.0,109580.0,0.1548]
[1756604857060,0.53701926,109590.0,109580.0,0.1548]
[1756604857850,0.18251505,109580.0,109570.0,0.28328271]
[1756604858103,0.20057285,109580.0,109570.0,0.43804271]
[1756604858308,0.20255285,109580.0,109570.0,0.43804271]
[1756604858515,0.20255285,109580.0,109570.0,0.44015271]
[1756604858910,0.20057285,109580.0,109570.0,0.44015271]
[1756604859093,0.20342981,109580.0,109570.0,0.28539271]
[1756604859297,0.20742981,109580.0,109570.0,0.44015271]
[1756604860110,0.22171516,109580.0,109570.0,0.44015271]
[1756604862394,0.22171515,109580.0,109570.0,0.28539271]
[1756604862758,0.22171515,109580.0,109570.0,0.44003271]
[1756604863096,0.22369515,109580.0,109570.0,0.44003271]
[1756604864344,0.22171515,109580.0,109570.0,0.44003271]
[1756604864784,0.0392001,109580.0,109570.0,0.44003271]
[1756604864986,0.0211423,109580.0,109570.0,0.8989505]
[1756604865195,0.0211423,109580.0,109570.0,0.9263905]
[1756604865409,0.0211423,109580.0,109570.0,0.53301172]
[1756604865669,0.004,109580.0,109570.0,0.9263905]
[1756604866081,0.002,109580.0,109570.0,0.9263905]
[1756604866265,0.00485666,109580.0,109570.0,0.9263905]
[1756604866465,0.002,109580.0,109570.0,0.9263905]
[1756604867221,0.20391701,109590.0,109580.0,0.18251505]
[1756604867430,0.20391701,109590.0,109580.0,0.67409384]
[1756604867630,0.02141861,109590.0,109580.0,0.67409384]
[1756604867889,0.20391701,109590.0,109580.0,0.70153284]
[1756604868284,0.02141861,109590.0,109580.0,0.70153284]
[1756604868506,0.02241861,109590.0,109580.0,0.70153284]
[1756604868696,0.02341861,109590.0,109580.0,0.30815406]
[1756604868870,0.03770244,109590.0,109580.0,0.70153284]
[1756604870450,0.22020084,109590.0,109580.0,0.70153284]
[1756604870780,0.22218084,109590.0,109580.0,0.46267406]
[1756604871377,0.22218084,109590.0,109580.0,0.46263406]
[1756604871597,0.22218084,109590.0,109580.0,0.28011901]
[1756604871795,0.22218084,109590.0,109580.0,0.45741406]
[1756604871996,0.22218084,109590.0,109580.0,0.27794901]
[1756604872439,0.22218084,109590.0,109580.0,0.46255406]
[1756604873629,0.22218084,109590.0,109580.0,0.28003901]
[1756604873991,0.22218084,109590.0,109580.0,0.27798901]
[1756604874213,0.23925921,109590.0,109580.0,0.28007901]
[1756604874410,0.23925921,109590.0,109580.0,0.12555901]
[1756604874614,0.23925921,109590.0,109580.0,0.28003901]
[1756604875166,0.23925921,109590.0,109580.0,0.46255406]
[1756604876352,0.23925921,109590.0,109580.0,0.28003901]
[1756604876556,0.23926571,109590.0,109580.0,0.12555901]
[1756604876740,0.23926571,109590.0,109580.0,0.27999901]
[1756604877354,0.23926571,109590.0,109580.0,0.27995901]
[1756604877565,0.23926571,109590.0,109580.0,0.46247406]
[1756604877930,0.23926571,109590.0,109580.0,0.27995901]
[1756604878296,0.23926571,109590.0,109580.0,0.46247406]
[1756604879258,0.23728571,109590.0,109580.0,0.46247406]
[1756604880467,0.24567919,109590.0,109580.0,0.27995901]
[1756604880834,0.24567919,109590.0,109580.0,0.46247406]
[1756604881314,0.24570117,109590.0,109580.0,0.46247406]
[1756604881826,0.24372117,109590.0,109580.0,0.46247406]
[1756604883105,0.24372117,109590.0,109580.0,0.27995901]
[1756604883285,0.24372117,109590.0,109580.0,0.46247406]
[1756604883539,0.24570117,109590.0,109580.0,0.27995901]
[1756604884278,0.24570117,109590.0,109580.0,0.46247406]
[1756604884484,0.24372117,109590.0,109580.0,0.46247406]
[1756604885498,0.24372117,109590.0,109580.0,0.75732402]
[1756604886017,0.24373052,109590.0,109580.0,0.75732402]
[1756604886652,0.24373143,109590.0,109580.0,0.75732402]
[1756604887178,0.23731426,109590.0,109580.0,0.75732402]
[1756604887592,0.23731426,109590.0,109580.0,0.27995901]
[1756604887773,0.23929426,109590.0,109580.0,0.75732402]
[1756604887979,0.23731426,109590.0,109580.0,0.75732402]
[1756604891972,0.23731426,109590.0,109580.0,0.57480897]
[1756604892372,0.23929426,109590.0,109580.0,0.27983901]
[1756604892579,0.23929426,109590.0,109580.0,0.57468897]
[1756604893377,0.23929426,109590.0,109580.0,0.75720402]
[1756604893593,0.23929426,109590.0,109580.0,0.57468897]
[1756604894021,0.23929426,109590.0,109580.0,0.75720402]
[1756604894162,0.23731426,109590.0,109580.0,0.75720402]
[1756604895042,0.23731426,109590.0,109580.0,0.57468897]
[1756604895245,0.23731426,109590.0,109580.0,0.75720402]
[1756604895853,0.23731426,109590.0,109580.0,0.42040897]
[1756604896057,0.23731426,109590.0,109580.0,0.75720402]
[1756604896569,0.23733772,109590.0,109580.0,0.75720402]
[1756604898134,0.23733772,109590.0,109580.0,0.46235406]
[1756604898354,0.23733772,109590.0,109580.0,0.75720402]
[1756604899009,0.23633772,109590.0,109580.0,0.75720402]
[1756604899189,0.2192009,109590.0,109580.0,0.75720402]
[1756604899689,0.2192009,109590.0,109580.0,0.46235406]
[1756604899901,0.2192009,109590.0,109580.0,0.75720402]
[1756604900103,0.2182009,109590.0,109580.0,0.75720402]
[1756604900489,0.2182009,109590.0,109580.0,0.75820402]
[1756604902613,0.2182009,109590.0,109580.0,0.46335406]
[1756604902773,0.2182009,109590.0,109580.0,0.75820402]
[1756604907000,0.2182009,109590.0,109580.0,0.42140897]
[1756604907142,0.2182009,109590.0,109580.0,0.57568897]
[1756604907584,0.2182009,109590.0,109580.0,0.75820402]
[1756604907758,0.2182009,109590.0,109580.0,0.12655901]
[1756604908301,0.2182009,109590.0,109580.0,0.57568897]
[1756604908808,0.2182009,109590.0,109580.0,0.75820402]
[1756604909366,0.2182009,109590.0,109580.0,0.57568897]
[1756604910379,0.2182009,109590.0,109580.0,0.75820402]
[1756604910663,0.2182009,109590.0,109580.0,0.57568897]
[1756604912073,0.2182009,109590.0,109580.0,0.28083901]
[1756604912280,0.2182009,109590.0,109580.0,0.57568897]
[1756604913695,0.2182009,109590.0,109580.0,0.75820402]
[1756604914080,0.2182009,109590.0,109580.0,0.57568897]
[1756604914387,0.2182009,109590.0,109580.0,0.75820402]
[1756604915140,0.0357025,109590.0,109580.0,0.75820402]
[1756604915341,0.21534425,109590.0,109580.0,0.75820402]
[1756604915490,0.21820082,109590.0,109580.0,0.75820402]
[1756604916783,0.21820082,109590.0,109580.0,0.46335406]
[1756604916984,0.21820082,109590.0,109580.0,0.75820402]
[1756604917801,0.21534425,109590.0,109580.0,0.75820402]
[1756604918027,0.21820084,109590.0,109580.0,0.75820402]
[1756604918628,0.21534425,109590.0,109580.0,0.75820402]
[1756604920177,0.21820085,109590.0,109580.0,0.75820402]
[1756604920929,0.21820085,109590.0,109580.0,0.12655901]
[1756604921154,0.22018085,109590.0,109580.0,0.28079901]
[1756604921408,0.51503081,109590.0,109580.0,0.182679]
[1756604921571,0.51503092,109590.0,109580.0,0.182679]
[1756604924519,0.22018096,109590.0,109580.0,0.182679]
[1756604924727,0.51503092,109590.0,109580.0,0.182679]
[1756604925793,0.51503092,109590.0,109580.0,0.028439]
[1756604925992,0.51503092,109590.0,109580.0,0.182679]
[1756604926838,0.88000095,109590.0,109580.0,0.001]
[1756604927045,0.88000095,109590.0,109580.0,0.15524]
[1756604927046,5.45024712,109590.0,109580.0,0.15524]
[1756604928023,5.15539716,109590.0,109580.0,0.15524]
[1756604928190,5.45024712,109590.0,109580.0,0.15424]
[1756604928386,5.45124712,109590.0,109580.0,0.15424]
[1756604928594,5.45223139,109590.0,109580.0,0.15424]
[1756604928767,0.52251505,109580.0,109570.0,0.0702]
[1756604929133,5.39443103,109580.0,109570.0,0.22444]
[1756604929347,0.52735219,109580.0,109570.0,0.22944]
[1756604929498,0.52537219,109580.0,109570.0,0.22944]
[1756604930099,0.82022215,109580.0,109570.0,0.23044]
[1756604930311,0.83450759,109580.0,109570.0,0.23044]
[1756604930889,0.53965763,109580.0,109570.0,0.23044]
[1756604931096,0.83450759,109580.0,109570.0,0.23044]
[1756604931297,0.83165045,109580.0,109570.0,0.23044]
[1756604933436,0.53680049,109580.0,109570.0,0.23044]
[1756604933873,0.83165045,109580.0,109570.0,0.23044]
[1756604934282,0.53680049,109580.0,109570.0,0.23044]
[1756604934481,0.53680049,109580.0,109570.0,0.25873171]
[1756604934682,0.53680049,109580.0,109570.0,0.41297171]
[1756604934886,0.53680049,109580.0,109570.0,0.70782167]
[1756604935089,0.53680049,109580.0,109570.0,0.73526367]
[1756604935424,0.18251505,109580.0,109570.0,0.44041371]
[1756604937251,0.18251505,109580.0,109570.0,0.257882]
[1756604937488,0.18251505,109580.0,109570.0,0.103642]
[1756604937695,0.18449505,109580.0,109570.0,0.257882]
[1756604937905,0.57768655,109580.0,109570.0,0.22544]
[1756604938078,0.92195373,109580.0,109570.0,0.0712]
[1756604938280,0.96650791,109580.0,109570.0,0.22544]
[1756604938877,0.96650791,109580.0,109570.0,0.0712]
[1756604939081,0.9853507,109580.0,109570.0,0.22544]
[1756604939281,5.53100806,109580.0,109570.0,0.001]
[1756604939589,5.62398807,109580.0,109570.0,0.15424]
[1756604939941,5.62498807,109580.0,109570.0,0.15424]
[1756604940375,0.18254837,109560.0,109550.0,0.0702]
[1756604940590,0.57779987,109560.0,109550.0,0.22444]
[1756604941577,0.91779987,109560.0,109550.0,0.0722]
[1756604941772,0.91912987,109560.0,109550.0,0.0732]
[1756604941973,0.94943865,109560.0,109550.0,0.003]
[1756604942199,0.97294652,109560.0,109550.0,0.15724]
[1756604942565,0.96653511,109560.0,109550.0,0.15624]
[1756604943339,0.96653511,109560.0,109550.0,0.15424]
[1756604943518,0.96853511,109560.0,109550.0,0.15424]
[1756604943935,1.06151512,109560.0,109550.0,0.15424]
[1756604944298,0.5225817,109540.0,109530.0,0.07331]
[1756604944486,0.9157732,109540.0,109530.0,0.22444]
[1756604944662,0.9178232,109540.0,109530.0,0.22755]
[1756604945023,0.6052772,109540.0,109530.0,0.22951]
[1756604945575,0.6052772,109540.0,109530.0,0.23055767]
[1756604946289,0.2120857,109540.0,109530.0,0.23055767]
[1756604946491,0.6032272,109540.0,109530.0,0.23155767]
[1756604950208,0.6052672,109540.0,109530.0,0.23155767]
[1756604950412,0.2120757,109540.0,109530.0,0.22648767]
[1756604950619,0.6052672,109540.0,109530.0,0.22959767]
[1756604951066,0.6052672,109540.0,109530.0,0.23155767]
[1756604951282,0.6032272,109540.0,109530.0,0.23155767]
[1756604953422,0.62027479,109540.0,109530.0,0.23155767]
[1756604954775,0.62027479,109540.0,109530.0,0.23162867]
[1756604956019,0.22708329,109540.0,109530.0,0.23162867]
[1756604956228,0.62027479,109540.0,109530.0,0.23162867]
[1756604956640,0.22708329,109540.0,109530.0,0.23162867]
[1756604957050,0.01704759,109540.0,109530.0,0.90039855]
[1756604957255,0.55001745,109550.0,109540.0,0.1825817]
[1756604957485,0.53962133,109550.0,109540.0,0.1825817]
[1756604957725,0.53962133,109550.0,109540.0,0.1856917]
[1756604957963,0.53962133,109550.0,109540.0,0.1876517]
[1756604958806,0.20061991,109550.0,109540.0,0.1876517]
[1756604959133,0.20062041,109550.0,109540.0,0.1876517]
[1756604959979,0.20062249,109550.0,109540.0,0.1876517]
[1756604960498,0.20062249,109550.0,109540.0,0.2151017]
[1756604961402,0.01805746,109550.0,109540.0,0.2151017]
[1756604961619,0.001,109550.0,109540.0,0.2151017]
[1756604961772,0.001,109550.0,109540.0,0.30808171]
[1756604963146,0.001,109550.0,109540.0,0.70127321]
[1756604963741,0.001,109550.0,109540.0,0.85127321]
[1756604963926,0.001,109550.0,109540.0,0.70127321]
[1756604964148,0.001,109550.0,109540.0,0.85127321]
[1756604964367,0.001,109550.0,109540.0,0.70127321]
[1756604965328,0.001,109550.0,109540.0,0.85127321]
[1756604965539,0.18254956,109560.0,109550.0,0.18256503]
[1756604965736,0.19962719,109560.0,109550.0,0.41205503]
[1756604966131,0.19962719,109560.0,109550.0,0.07525]
[1756604966303,0.59479869,109560.0,109550.0,0.0702]
[1756604966532,0.93906618,109560.0,109550.0,0.22444]
[1756604966862,0.96651518,109560.0,109550.0,0.22444]
[1756604967063,0.97292227,109560.0,109550.0,0.22544]
[1756604967886,0.97392227,109560.0,109550.0,0.22544]
[1756604968250,0.97292227,109560.0,109550.0,0.0712]
[1756604968521,0.97492227,109560.0,109550.0,0.22444]
[1756604969448,0.97592227,109560.0,109550.0,0.22444]
[1756604969789,0.9759529,109560.0,109550.0,0.22444]
[1756604971049,0.9745429,109560.0,109550.0,0.22444]
[1756604971352,0.1825817,109540.0,109530.0,0.09776967]
[1756604971565,0.59287508,109540.0,109530.0,0.07324867]
[1756604971764,0.59485508,109540.0,109530.0,0.22748867]
[1756604972132,0.20166358,109540.0,109530.0,0.22960867]
[1756604972522,0.19968358,109540.0,109530.0,0.23060867]
[1756604972922,0.19968358,109540.0,109530.0,0.41320704]
[1756604973573,0.19968358,109540.0,109530.0,0.41420704]
[1756604975500,0.19968358,109540.0,109530.0,0.41327393]
[1756604976100,0.01710188,109540.0,109530.0,0.89944544]
[1756604976400,0.1825817,109540.0,109530.0,0.50625394]
[1756604976631,0.18258009,109550.0,109530.0,0.50625394]
[1756604976807,0.1825817,109540.0,109530.0,0.50332394]
[1756604976959,0.18258009,109550.0,109530.0,0.50332394]
[1756604977181,0.2025423,109550.0,109530.0,0.50332394]
[1756604977372,0.01996221,109550.0,109540.0,0.1855117]
[1756604977579,0.0171044,109550.0,109540.0,0.67380321]
[1756604977967,0.0171044,109550.0,109540.0,0.28061171]
[1756604978202,0.19167697,109560.0,109540.0,0.28061171]
[1756604978489,0.21805389,109560.0,109550.0,0.22733]
[1756604978768,0.21805389,109560.0,109550.0,0.22945]
[1756604978974,0.01996259,109560.0,109550.0,0.41201503]
[1756604979173,0.20251096,109560.0,109550.0,0.41201503]
[1756604979392,0.20065326,109560.0,109550.0,0.41201503]
[1756604980484,0.18354837,109560.0,109550.0,0.41201503]
[1756604980688,0.18254837,109560.0,109550.0,0.41201503]
[1756604981190,0.18254837,109560.0,109550.0,0.25781503]
[1756604981372,0.18254837,109560.0,109550.0,0.41201503]
[1756604981911,0.18452837,109560.0,109550.0,0.07525]
[1756604982056,0.18452837,109560.0,109550.0,0.07313]
[1756604982283,0.59768118,109560.0,109550.0,0.2244]
[1756604982888,0.57771987,109560.0,109550.0,0.22945]
[1756604983107,0.18452837,109560.0,109550.0,0.22945]
[1756604984121,0.18452837,109560.0,109550.0,0.07525]
[1756604984329,0.18452837,109560.0,109550.0,0.22945]
[1756604985362,0.18452837,109560.0,109550.0,0.07525]
[1756604985568,0.93768712,109560.0,109550.0,0.2244]
[1756604986129,0.54449562,109560.0,109550.0,0.2244]
[1756604986307,0.93768712,109560.0,109550.0,0.2244]
[1756604986509,0.20251562,109560.0,109550.0,0.41201503]
[1756604986715,0.18254837,109560.0,109550.0,0.41201503]
[1756604987759,0.58486487,109570.0,109560.0,0.18254837]
[1756604988145,0.22593205,109570.0,109560.0,0.18759837]
[1756604989028,0.22593205,109570.0,109560.0,0.00505]
[1756604989593,0.22593205,109570.0,109560.0,0.18759837]
[1756604989804,0.22593205,109570.0,109560.0,0.33759837]
[1756604989979,0.22793205,109570.0,109560.0,0.18759837]
[1756604990247,0.03625868,109570.0,109560.0,0.28057838]
[1756604990441,0.002,109570.0,109560.0,0.67376988]
[1756604990651,0.003,109570.0,109560.0,0.67376988]
[1756604990774,0.003,109570.0,109560.0,0.82876988]
[1756604990978,0.002,109570.0,109560.0,0.82876988]
[1756604991206,0.60290009,109590.0,109570.0,0.18253171]
[1756604991428,4.557086,109580.0,109570.0,0.18253171]
[1756604991613,4.557086,109580.0,109570.0,0.33753171]
[1756604991823,4.557086,109580.0,109570.0,0.33949171]
[1756604992039,4.557086,109580.0,109570.0,0.41271171]
[1756604992408,4.55756278,109580.0,109570.0,0.41271171]
[1756604992608,0.00047678,109580.0,109570.0,0.41271171]
[1756604993236,0.18299183,109580.0,109570.0,0.41271171]
[1756604993618,0.18299183,109580.0,109570.0,0.41471171]
[1756604993845,0.01476173,109580.0,109570.0,0.41471171]
[1756604997248,0.00976173,109580.0,109570.0,0.41471171]
[1756604997626,0.20970859,109590.0,109570.0,0.41471171]
[1756604997767,4.557086,109580.0,109570.0,0.41169171]
[1756604998422,4.557086,109580.0,109570.0,0.41471171]
[1756605000915,4.57137089,109580.0,109570.0,0.41471171]
[1756605001128,0.01428489,109580.0,109570.0,0.41471171]
[1756605003652,0.01428489,109580.0,109570.0,0.90088322]
[1756605004957,0.01428489,109580.0,109570.0,0.50769172]
[1756605005368,0.01428489,109580.0,109570.0,0.90088322]
[1756605005564,0.01428489,109580.0,109570.0,0.50769172]
[1756605005768,0.01428489,109580.0,109570.0,0.90040322]
[1756605005971,0.01428489,109580.0,109570.0,0.35269172]
[1756605006196,0.01428489,109580.0,109570.0,0.50717172]
[1756605009640,0.19679994,109580.0,109570.0,0.35269172]
[1756605009841,0.19679994,109580.0,109570.0,0.50717172]
[1756605011924,0.19679994,109580.0,109570.0,0.35269172]
[1756605012047,0.19679994,109580.0,109570.0,0.50713172]
[1756605013840,0.19679994,109580.0,109570.0,0.50709172]
[1756605014514,0.19679994,109580.0,109570.0,0.50701172]
[1756605015883,0.19679994,109580.0,109570.0,0.50697172]
[1756605018003,0.19679994,109580.0,109570.0,0.17016001]
[1756605018235,0.19877994,109580.0,109570.0,0.32244001]
[1756605018436,0.19877994,109580.0,109570.0,0.50693172]
[1756605018832,0.19679994,109580.0,109570.0,0.50693172]
[1756605020385,0.19965677,109580.0,109570.0,0.50693172]
[1756605022763,0.01714172,109580.0,109570.0,0.50693172]
[1756605022964,0.19965677,109580.0,109570.0,0.50693172]
[1756605023582,0.01714172,109580.0,109570.0,0.50693172]
[1756605023988,0.19965677,109580.0,109570.0,0.50693172]
[1756605026094,0.53965677,109580.0,109570.0,0.50693172]
[1756605029344,0.53965677,109580.0,109570.0,0.80182175]
[1756605031412,0.53679994,109580.0,109570.0,0.80182175]
[1756605031622,0.53965673,109580.0,109570.0,0.80182175]
[1756605032444,0.53679994,109580.0,109570.0,0.50693172]
[1756605032627,0.53679994,109580.0,109570.0,0.80182175]
[1756605035258,0.35428489,109580.0,109570.0,0.80182175]
[1756605035416,0.53679994,109580.0,109570.0,0.80182175]
[1756605036074,0.35428489,109580.0,109570.0,0.80182175]
[1756605036584,0.53679994,109580.0,109570.0,0.80182175]
[1756605038523,0.53679994,109580.0,109570.0,0.46505004]
[1756605038709,0.83366997,109580.0,109570.0,0.50689172]
[1756605038914,0.53679994,109580.0,109570.0,0.50689172]
[1756605039132,0.53679994,109580.0,109570.0,0.80178175]
[1756605039541,0.53679994,109580.0,109570.0,0.64758175]
[1756605039763,0.53877994,109580.0,109570.0,0.50689172]
[1756605039962,0.53679994,109580.0,109570.0,0.50689172]
[1756605040960,0.53679994,109580.0,109570.0,0.35269172]
[1756605041180,0.53679994,109580.0,109570.0,0.50689172]
[1756605041403,0.53679994,109580.0,109570.0,0.80178175]
[1756605041628,0.35428489,109580.0,109570.0,0.80178175]
[1756605042061,0.35428489,109580.0,109570.0,0.50689172]
[1756605042491,0.00014292,109590.0,109580.0,0.33251505]
[1756605042718,0.00014292,109590.0,109580.0,0.63654508]
[1756605042719,0.00299951,109590.0,109580.0,0.63654508]
[1756605042954,0.00014292,109590.0,109580.0,0.72952509]
[1756605043127,0.82592458,109600.0,109590.0,0.1824984]
[1756605043287,0.82592458,109600.0,109590.0,0.2556384]
[1756605043497,0.84789837,109600.0,109590.0,0.2576384]
[1756605043882,0.85702245,109600.0,109590.0,0.2576384]
[1756605044196,1.15191248,109600.0,109590.0,0.07314]
[1756605044429,1.14922332,109600.0,109590.0,0.2244]
[1756605044983,1.14922332,109600.0,109590.0,0.0702]
[1756605045293,1.15122332,109600.0,109590.0,0.2244]
[1756605045496,1.14922332,109600.0,109590.0,0.2244]
[1756605046014,1.16450597,109600.0,109590.0,0.2244]
[1756605047064,0.57472591,109600.0,109590.0,0.2244]
[1756605047265,1.16450597,109600.0,109590.0,0.2244]
[1756605047883,1.16450597,109600.0,109590.0,0.4118384]
[1756605047884,1.16252597,109600.0,109590.0,0.4118384]
[1756605048185,1.14736876,109600.0,109590.0,0.22934]
[1756605050582,1.14736872,109600.0,109590.0,0.22934]
[1756605051349,1.14836872,109600.0,109590.0,0.22934]
[1756605051892,1.14736872,109600.0,109590.0,0.22934]
[1756605052225,1.14836872,109600.0,109590.0,0.22934]
[1756605052636,1.14736872,109600.0,109590.0,0.22934]
[1756605052962,1.14736872,109600.0,109590.0,0.23034]
[1756605053356,1.14736872,109600.0,109590.0,0.4128384]
[1756605054095,1.14451218,109600.0,109590.0,0.23034]
[1756605054322,1.14736872,109600.0,109590.0,0.2303]
[1756605054729,1.14736872,109600.0,109590.0,0.0712]
[1756605054953,1.14736872,109600.0,109590.0,0.22536]
[1756605054954,0.55758868,109600.0,109590.0,0.22536]
[1756605055233,1.14636874,109600.0,109590.0,0.22436]
[1756605055481,1.14736874,109600.0,109590.0,0.22436]
[1756605055664,1.14636874,109600.0,109590.0,0.22436]
[1756605055998,1.14736874,109600.0,109590.0,0.22436]
[1756605056507,1.14836874,109600.0,109590.0,0.22436]
[1756605056811,1.14736874,109600.0,109590.0,0.22436]
[1756605057147,1.14836874,109600.0,109590.0,0.22436]
[1756605058264,0.55858868,109600.0,109590.0,0.22965]
[1756605058397,0.55858868,109600.0,109590.0,0.07549]
[1756605058593,1.14836874,109600.0,109590.0,0.22436]
[1756605060217,1.14836874,109600.0,109590.0,0.0702]
[1756605060420,1.14836874,109600.0,109590.0,0.22436]
[1756605062061,1.14836874,109600.0,109590.0,0.22758]